bitfinex/quotes_SOLUSD_20250310
["timestamp","ask_amount","ask_price","bid_price","bid_amount"]
[1741629881318,0.03,118.42,118.41,54.27391933]
[1741629881695,0.03,118.42,118.37,76.6]
[1741629881895,0.03,118.42,118.39,54.27391933]
[1741629881896,20.0,118.4,118.39,54.27391933]
[1741629882413,0.03,118.59,118.53,2.0]
[1741629882627,3.3269183,118.63,118.62,20.79181043]
[1741629882810,0.03,118.64,118.63,2.0]
[1741629883116,0.03,118.64,118.63,75.06572976]
[1741629883319,4.3269183,118.66,118.65,2.28432314]
[1741629883501,4.3269183,118.66,118.65,255.87353566]
[1741629883709,4.3269183,118.66,118.65,191.62356819]
[1741629883896,4.3269183,118.66,118.65,191.76572976]
[1741629884095,4.3269183,118.66,118.65,246.18181066]
[1741629884410,4.3269183,118.66,118.65,297.21633204]
[1741629884602,4.3269183,118.66,118.65,254.60991066]
[1741629884799,42.18735081,118.78,118.73,2.0]
[1741629885021,13.02,118.78,118.73,56.27391933]
[1741629885627,13.02,118.78,118.76,2.0]
[1741629885797,223.56,118.81,118.77,56.27391933]
[1741629885997,223.56,118.81,118.79,54.27391933]
[1741629886197,223.56,118.81,118.78,54.27391933]
[1741629886523,277.83391933,118.81,118.74,2.0]
[1741629886695,277.83391933,118.81,118.75,54.27391933]
[1741629887111,20.0,118.78,118.76,54.27391933]
[1741629887713,20.0,118.78,118.77,54.27391933]
[1741629887916,18.933972,118.79,118.71,2.0]
[1741629888121,72.92356819,118.77,118.71,56.27391933]
[1741629888423,13.0,118.76,118.71,54.27391933]
[1741629888596,13.0,118.76,118.71,56.27391933]
[1741629889020,13.0,118.76,118.72,54.27391933]
[1741629889227,0.15907002,118.73,118.72,54.27391933]
[1741629889726,0.15907002,118.73,118.72,2.0]
[1741629889919,0.15907002,118.73,118.71,54.27391933]
[1741629890116,20.15907002,118.73,118.72,54.27391933]
[1741629890423,20.15907002,118.73,118.71,54.27391933]
[1741629890600,20.0,118.72,118.68,2.0]
[1741629890804,20.0,118.72,118.69,54.27391933]
[1741629890805,243.4,118.72,118.69,54.27391933]
[1741629891010,243.4,118.72,118.66,2.0]
[1741629891218,297.67391933,118.72,118.67,2.0]
[1741629891417,243.4,118.72,118.67,56.27391933]
[1741629891622,20.0,118.68,118.67,54.27391933]
[1741629891831,20.0,118.67,118.63,132.763]
[1741629892015,20.0,118.67,118.66,54.27391933]
[1741629892323,32.98,118.68,118.66,54.27391933]
[1741629892529,32.98,118.68,118.67,54.27391933]
[1741629892996,32.98,118.68,118.67,56.27391933]
[1741629893612,32.98,118.68,118.67,54.27391933]
[1741629893926,12.98,118.68,118.67,54.27391933]
[1741629894400,20.0,118.66,118.63,0.063]
[1741629894607,20.0,118.66,118.65,54.27391933]
[1741629896328,12.98,118.68,118.65,54.27391933]
[1741629896728,12.98,118.68,118.66,54.27391933]
[1741629897203,12.98,118.68,118.67,56.27391933]
[1741629897804,223.4,118.72,118.67,56.27391933]
[1741629898013,12.98,118.71,118.68,54.27391933]
[1741629898217,20.0,118.69,118.68,54.27391933]
[1741629898415,20.0,118.68,118.67,2.0]
[1741629898817,20.0,118.68,118.67,54.27391933]
[1741629899010,20.0,118.68,118.66,54.27391933]
[1741629899225,20.0,118.68,118.65,54.27391933]
[1741629899425,20.0,118.68,118.66,2.0]
[1741629899613,20.0,118.68,118.66,54.27391933]
[1741629899809,20.0,118.67,118.66,2.0]
[1741629900109,20.0,118.67,118.66,54.27391933]
[1741629900429,67.25391933,118.71,118.64,2.0]
[1741629900430,20.0,118.68,118.64,2.0]
[1741629900625,20.0,118.67,118.65,54.27391933]
[1741629900803,20.0,118.67,118.66,54.27391933]
[1741629901005,20.0,118.67,118.65,54.27391933]
[1741629901233,20.0,118.68,118.66,56.27391933]
[1741629901411,20.0,118.68,118.67,56.27391933]
[1741629902030,223.28,118.69,118.67,56.27391933]
[1741629902214,236.26,118.69,118.68,54.27391933]
[1741629902419,236.26,118.69,118.67,0.063]
[1741629902812,298.11671933,118.69,118.67,0.063]
[1741629903418,243.8428,118.69,118.67,0.063]
[1741629903621,73.06572976,118.68,118.67,0.063]
[1741629903831,7.5834,118.68,118.67,0.063]
[1741629904221,80.64912976,118.68,118.67,0.063]
[1741629904436,61.9994809,118.68,118.67,0.063]
[1741629904742,243.8429,118.69,118.67,0.063]
[1741629905133,243.8429,118.69,118.67,54.33691933]
[1741629905441,243.8429,118.69,118.67,0.063]
[1741629905945,236.26,118.69,118.67,56.33691933]
[1741629906307,223.28,118.69,118.68,56.27391933]
[1741629906512,236.26,118.69,118.67,54.33691933]
[1741629907034,243.8428,118.69,118.67,0.063]
[1741629907511,54.27391933,118.68,118.67,0.063]
[1741629907839,243.8428,118.69,118.67,0.063]
[1741629908039,18.79181043,118.68,118.67,0.063]
[1741629908231,20.0,118.65,118.63,0.063]
[1741629908429,20.0,118.64,118.63,0.063]
[1741629908630,20.0,118.64,118.63,54.33691933]
[1741629908837,20.0,118.67,118.66,2.0]
[1741629909167,0.16369765,118.66,118.65,2.0]
[1741629909649,0.15373283,118.68,118.67,2.28432314]
[1741629909816,0.17862127,118.7,118.69,20.933972]
[1741629910141,0.17862127,118.7,118.69,74.92356819]
[1741629910444,0.17173889,118.71,118.7,20.933972]
[1741629910615,0.17173889,118.71,118.7,193.61022168]
[1741629910819,0.17173889,118.71,118.7,56.27391933]
[1741629912844,7.75323889,118.71,118.7,54.27391933]
[1741629913054,7.75323889,118.71,118.67,56.27391933]
[1741629913233,12.96,118.7,118.66,2.0]
[1741629913431,12.96,118.7,118.63,137.39930235]
[1741629913432,20.0,118.66,118.64,54.27391933]
[1741629913745,223.22,118.67,118.64,54.27391933]
[1741629913922,223.22,118.67,118.63,56.33691933]
[1741629914115,230.8045,118.67,118.65,54.27391933]
[1741629914321,230.8045,118.67,118.64,54.27391933]
[1741629914522,20.0,118.64,118.63,0.063]
[1741629914737,32.96,118.64,118.63,0.063]
[1741629915348,32.96,118.64,118.63,0.0001]
[1741629915539,106.16789133,118.64,118.63,0.0001]
[1741629916045,106.02572976,118.64,118.63,0.0001]
[1741629916242,113.75379133,118.64,118.63,0.0001]
[1741629919050,59.33771043,118.64,118.63,0.0001]
[1741629919230,113.75379133,118.64,118.63,0.0001]
[1741629919548,59.33771043,118.64,118.63,0.0001]
[1741629919841,113.61162976,118.64,118.63,0.0001]
[1741629920543,113.75379133,118.64,118.63,0.0001]
[1741629920747,195.55379133,118.64,118.63,0.0001]
[1741629921118,0.14216157,118.63,118.54,2.0]
[1741629921323,74.27391933,118.59,118.54,54.27391933]
[1741629921539,136.07391933,118.62,118.56,56.27391933]
[1741629921540,236.28,118.58,118.56,56.27391933]
[1741629921735,236.28,118.58,118.57,56.27391933]
[1741629921933,236.28,118.58,118.57,54.27391933]
[1741629922139,20.0,118.56,118.55,54.27391933]
[1741629922352,26.5665,118.57,118.54,56.27391933]
[1741629922545,26.5665,118.57,118.54,54.27391933]
[1741629922930,26.5665,118.57,118.54,56.27391933]
[1741629923125,236.28,118.58,118.56,56.27391933]
[1741629923358,243.87,118.58,118.57,56.27391933]
[1741629923852,243.87,118.58,118.55,54.27391933]
[1741629924046,262.8445,118.58,118.56,54.27391933]
[1741629924351,243.8698,118.58,118.57,56.27391933]
[1741629924854,230.9098,118.58,118.57,56.27391933]
[1741629925151,26.5512,118.64,118.61,2.0]
[1741629925354,26.5512,118.64,118.61,56.27391933]
[1741629925550,223.36,118.65,118.62,56.27391933]
[1741629925748,223.36,118.65,118.64,56.27391933]
[1741629926054,223.36,118.65,118.64,2.0]
[1741629926260,223.36,118.65,118.64,54.27391933]
[1741629926451,0.16093492,118.73,118.72,2.0]
[1741629926669,0.03,118.78,118.77,2.0]
[1741629926833,0.03,118.81,118.8,20.64964886]
[1741629927035,0.03,118.81,118.8,158.27027435]
[1741629927336,223.36,118.89,118.86,2.0]
[1741629927534,230.9301,118.89,118.86,53.73033682]
[1741629927738,223.36,118.89,118.87,53.73033682]
[1741629927940,20.0,118.87,118.86,53.73033682]
[1741629928150,20.0,118.86,118.84,2.0]
[1741629928453,20.0,118.85,118.83,53.73033682]
[1741629928661,7.5719,118.86,118.82,2.0]
[1741629928871,20.0,118.82,118.8,55.73033682]
[1741629929056,32.96,118.82,118.8,2.0]
[1741629929263,0.16553247,118.83,118.82,2.0]
[1741629929465,0.16553247,118.83,118.82,55.73033682]
[1741629929639,0.16553247,118.83,118.82,74.37998568]
[1741629929840,0.16553247,118.83,118.82,212.00061117]
[1741629930061,0.16553247,118.83,118.82,211.71628803]
[1741629930361,0.16553247,118.83,118.82,193.06663917]
[1741629931049,20.16553247,118.83,118.82,137.33630235]
[1741629931254,27.73933247,118.83,118.8,53.73033682]
[1741629931450,27.73933247,118.83,118.79,55.73033682]
[1741629931646,27.73933247,118.83,118.79,53.73033682]
[1741629931859,81.46966929,118.83,118.78,55.73033682]
[1741629932157,27.73933247,118.83,118.78,53.73033682]
[1741629932549,223.2,118.82,118.78,53.73033682]
[1741629932748,12.94,118.81,118.8,53.73033682]
[1741629932950,12.94,118.81,118.8,55.73033682]
[1741629934056,223.2,118.82,118.81,2.0]
[1741629934258,236.14,118.82,118.81,55.73033682]
[1741629934642,243.7144,118.82,118.81,55.73033682]
[1741629934843,20.0,118.8,118.78,2.0]
[1741629935048,243.7144,118.82,118.78,55.73033682]
[1741629935246,262.6506,118.82,118.77,55.73033682]
[1741629935642,20.0,118.78,118.76,55.73033682]
[1741629936082,20.0,118.78,118.77,55.73033682]
[1741629936246,243.7144,118.82,118.78,2.0]
[1741629936577,243.7144,118.82,118.79,53.73033682]
[1741629936578,20.0,118.8,118.79,53.73033682]
[1741629936748,40.5157,118.8,118.79,53.73033682]
[1741629937071,32.94,118.8,118.79,55.73033682]
[1741629937242,32.94,118.8,118.79,2.0]
[1741629937561,230.7746,118.82,118.81,2.0]
[1741629937760,223.2,118.82,118.81,193.06663917]
[1741629938246,230.7744,118.82,118.81,55.73033682]
[1741629938559,230.7744,118.82,118.8,137.33630235]
[1741629938560,230.7744,118.82,118.8,2.0]
[1741629938765,230.7744,118.82,118.81,2.0]
[1741629938962,223.2,118.82,118.81,55.73033682]
[1741629939263,223.2,118.82,118.81,193.06663917]
[1741629939565,230.7744,118.82,118.81,193.06663917]
[1741629939759,230.7744,118.82,118.81,192.56663917]
[1741629939964,230.7744,118.82,118.81,1.5]
[1741629941568,230.7744,118.82,118.8,1.5]
[1741629943061,230.7744,118.82,118.81,55.23033682]
[1741629944354,230.7744,118.82,118.81,1.5]
[1741629944555,230.7744,118.82,118.8,1.5]
[1741629944865,230.7744,118.82,118.81,55.23033682]
[1741629945280,7.5744,118.82,118.81,55.23033682]
[1741629945479,0.15916968,118.89,118.88,1.78432314]
[1741629945768,0.17281266,118.91,118.9,1.5]
[1741629945947,0.17281266,118.91,118.9,55.23033682]
[1741629946266,0.17281266,118.91,118.9,211.21628803]
[1741629946956,0.17281266,118.91,118.9,192.56663917]
[1741629947552,0.17281266,118.91,118.9,264.94662485]
[1741629948951,0.17281266,118.91,118.9,55.23033682]
[1741629949266,0.19357113,118.93,118.9,55.23033682]
[1741629949459,7.76127113,118.93,118.92,53.73033682]
[1741629949963,7.76127113,118.93,118.9,53.73033682]
[1741629950173,12.92,118.92,118.87,1.5]
[1741629950376,12.92,118.92,118.9,53.73033682]
[1741629950548,12.92,118.92,118.89,55.23033682]
[1741629950745,222.92,118.91,118.86,1.5]
[1741629950959,26.4927,118.9,118.86,55.23033682]
[1741629951369,80.22303682,118.9,118.85,55.23033682]
[1741629951576,26.4927,118.9,118.86,55.23033682]
[1741629951776,7.5693,118.9,118.89,55.29333682]
[1741629952084,243.3888,118.91,118.89,55.29333682]
[1741629952278,243.3888,118.91,118.9,55.23033682]
[1741629953250,243.3888,118.91,118.89,55.29333682]
[1741629953568,235.82,118.91,118.9,55.23033682]
[1741629953767,243.3887,118.91,118.9,55.23033682]
[1741629953945,235.82,118.91,118.9,55.23033682]
[1741629954153,243.3887,118.91,118.9,55.23033682]
[1741629955671,243.3887,118.91,118.89,138.89930235]
[1741629955855,243.3887,118.91,118.89,192.62963917]
[1741629956056,243.3887,118.91,118.9,53.73033682]
[1741629956277,243.3887,118.91,118.9,55.23033682]
[1741629957155,230.4887,118.91,118.9,55.23033682]
[1741629958688,0.03,118.92,118.91,1.5]
[1741629958883,0.03,118.92,118.91,246.29697599]
[1741629959085,7.5981,118.92,118.91,192.56663917]
[1741629959857,0.03,118.92,118.91,246.29697599]
[1741629960072,0.03,118.92,118.91,192.56663917]
[1741629960553,0.03,118.92,118.89,0.063]
[1741629960752,0.03,118.92,118.89,53.79333682]
[1741629960971,0.03,118.92,118.9,53.73033682]
[1741629961169,0.03,118.92,118.89,53.79333682]
[1741629961376,26.67977113,118.93,118.88,53.73033682]
[1741629961584,80.41010795,118.93,118.88,53.73033682]
[1741629962574,80.41010795,118.93,118.87,53.73033682]
[1741629962952,26.67977113,118.93,118.89,53.73033682]
[1741629963358,26.67977113,118.93,118.88,53.73033682]
[1741629963560,26.67977113,118.93,118.81,8.0912]
[1741629963760,108.47977113,118.93,118.82,18.64964886]
[1741629963968,53.73033682,118.92,118.87,53.73033682]
[1741629964201,53.73033682,118.91,118.85,53.73033682]
[1741629964366,20.0,118.88,118.83,53.73033682]
[1741629964567,20.0,118.88,118.85,53.73033682]
[1741629964786,20.0,118.88,118.84,53.73033682]
[1741629964972,235.7,118.87,118.8,150.23033682]
[1741629965175,289.43033682,118.87,118.82,53.73033682]
[1741629965381,23.5571,118.86,118.78,96.5]
[1741629965586,23.5571,118.86,118.82,53.73033682]
[1741629965899,20.0,118.84,118.81,53.73033682]
[1741629966305,20.0,118.83,118.77,0.063]
[1741629966490,53.73033682,118.84,118.79,53.73033682]
[1741629966674,53.73033682,118.84,118.78,53.73033682]
[1741629966675,53.73033682,118.83,118.78,53.73033682]
[1741629967202,90.8631,118.86,118.79,53.73033682]
[1741629967404,53.73033682,118.82,118.77,0.063]
[1741629967573,12.88,118.81,118.77,53.79333682]
[1741629967777,53.73033682,118.79,118.77,0.063]
[1741629967984,222.84,118.78,118.77,0.063]
[1741629968774,222.84,118.78,118.77,53.79333682]
[1741629969225,222.99271633,118.78,118.77,53.79333682]
[1741629969493,229.72781633,118.78,118.77,53.79333682]
[1741629969906,222.99271633,118.78,118.77,53.79333682]
[1741629970687,229.72781633,118.78,118.77,53.79333682]
[1741629970891,229.72781633,118.78,118.77,0.063]
[1741629971083,229.72781633,118.78,118.77,53.79333682]
[1741629971598,229.72781633,118.78,118.77,0.063]
[1741629971979,300.29595315,118.78,118.75,0.063]
[1741629972186,246.56561633,118.78,118.75,0.063]
[1741629972389,246.56561633,118.78,118.75,53.79333682]
[1741629972896,246.56561633,118.78,118.75,0.063]
[1741629973205,246.56561633,118.78,118.77,53.73033682]
[1741629973501,259.44561633,118.78,118.75,0.063]
[1741629973680,259.44561633,118.78,118.76,53.73033682]
[1741629973886,259.44561633,118.78,118.75,0.063]
[1741629974302,20.0,118.76,118.75,0.0001]
[1741629974476,73.73033682,118.76,118.68,96.5]
[1741629974677,53.73033682,118.69,118.65,0.063]
[1741629974899,73.73033682,118.66,118.58,53.73033682]
[1741629975077,235.82,118.68,118.58,11.2026]
[1741629975273,6.7413,118.67,118.59,1.26451963]
[1741629975474,6.7413,118.67,118.58,1.5420572]
[1741629975679,23.5947,118.67,118.57,19.1134]
[1741629975982,12.88,118.69,118.64,18.933972]
[1741629976184,12.88,118.69,118.66,18.933972]
[1741629976383,12.88,118.69,118.67,53.73033682]
[1741629976605,12.88,118.69,118.65,18.64964886]
[1741629976606,73.35053682,118.69,118.64,11.2026]
[1741629976804,73.35053682,118.69,118.64,18.64964886]
[1741629977015,19.6202,118.69,118.65,53.73033682]
[1741629977177,77.32113682,118.69,118.64,53.73033682]
[1741629977508,6.7413,118.67,118.63,64.99593682]
[1741629977692,19.621,118.68,118.65,53.73033682]
[1741629978081,12.88,118.72,118.67,53.73033682]
[1741629978287,53.73033682,118.7,118.67,11.2026]
[1741629978497,53.73033682,118.69,118.63,11.2656]
[1741629978690,53.73033682,118.69,118.64,53.73033682]
[1741629979010,53.73033682,118.68,118.64,53.73033682]
[1741629979194,53.73033682,118.67,118.63,11.2656]
[1741629979394,53.73033682,118.65,118.63,0.063]
[1741629979587,66.61033682,118.64,118.63,0.063]
[1741629980097,12.88,118.64,118.63,0.063]
[1741629980478,66.61033682,118.64,118.63,0.063]
[1741629980679,12.88,118.64,118.63,0.063]
[1741629980875,12.88,118.64,118.63,0.0001]
[1741629980876,66.61033682,118.64,118.63,0.0001]
[1741629981275,127.08367364,118.64,118.63,0.0001]
[1741629981483,20.0,118.6,118.52,32.51439748]
[1741629981709,20.0,118.6,118.52,86.2447343]
[1741629981710,53.73033682,118.57,118.52,86.2447343]
[1741629981912,12.88,118.56,118.52,86.2447343]
[1741629982204,12.88,118.56,118.52,24.16899748]
[1741629982205,66.61033682,118.56,118.52,24.16899748]
[1741629982412,53.73033682,118.55,118.52,12.96639748]
[1741629982785,66.61033682,118.56,118.52,12.96639748]
[1741629983413,5.9046,118.55,118.52,12.96639748]
[1741629983614,5.9046,118.55,118.52,66.6967343]
[1741629983787,18.7843,118.56,118.53,53.73033682]
[1741629984184,18.7843,118.56,118.52,12.96639748]
[1741629984185,53.73033682,118.54,118.52,12.96639748]
[1741629984401,53.73033682,118.53,118.52,12.96639748]
[1741629984787,53.73033682,118.53,118.52,9.748e-05]
[1741629985486,20.0,118.51,118.5,7.84831059]
[1741629985684,73.73033682,118.51,118.5,7.84831059]
[1741629985916,127.46067364,118.51,118.5,7.84831059]
[1741629986215,73.73033682,118.51,118.5,7.84831059]
[1741629986417,73.73033682,118.51,118.5,1.059e-05]
[1741629986588,92.37998568,118.51,118.48,35.29867073]
[1741629986783,53.73033682,118.49,118.48,7.073e-05]
[1741629987312,5.9056,118.53,118.48,7.073e-05]
[1741629987496,53.73033682,118.54,118.48,64.93300755]
[1741629987685,53.73033682,118.51,118.48,7.073e-05]
[1741629987891,53.73033682,118.5,118.48,7.073e-05]
[1741629988197,53.73033682,118.49,118.48,7.073e-05]
[1741629988599,53.73033682,118.49,118.45,5.063]
[1741629988908,223.34,118.48,118.46,72.37998568]
[1741629989108,0.18484766,118.47,118.46,72.37998568]
[1741629989309,0.18484766,118.47,118.45,58.79333682]
[1741629989512,6.09354766,118.47,118.45,5.063]
[1741629989715,59.82388448,118.47,118.45,5.063]
[1741629989919,66.63033682,118.46,118.45,5.063]
[1741629990918,12.9,118.46,118.45,5.063]
[1741629991319,12.9,118.46,118.45,58.79333682]
[1741629991621,0.18484766,118.47,118.45,58.79333682]
[1741629991915,0.18484766,118.47,118.46,53.73033682]
[1741629992115,4.40524766,118.47,118.45,5.063]
[1741629992291,0.18484766,118.47,118.45,23.71264886]
[1741629992493,4.40534766,118.47,118.45,23.71264886]
[1741629992717,4.40534766,118.47,118.45,5.063]
[1741629992925,0.18484766,118.47,118.45,58.79333682]
[1741629993093,4.40524766,118.47,118.45,5.063]
[1741629993424,0.18484766,118.47,118.45,58.79333682]
[1741629993589,0.18484766,118.47,118.46,72.52214725]
[1741629993789,0.18484766,118.47,118.46,83.86690882]
[1741629994996,0.16263543,118.48,118.47,27.495272]
[1741629995192,0.16263543,118.48,118.47,82.49099869]
[1741629995613,0.16263543,118.48,118.47,81.22560882]
[1741629995797,0.16263543,118.48,118.47,92.14388568]
[1741629996307,4.38273543,118.48,118.47,53.73033682]
[1741629996491,4.38273543,118.48,118.46,64.93293682]
[1741629996691,4.38273543,118.48,118.47,72.37998568]
[1741629996692,0.16263543,118.48,118.47,72.37998568]
[1741629996909,0.16263543,118.48,118.47,72.66430882]
[1741629997099,0.16263543,118.48,118.47,85.13252683]
[1741629997418,0.16263543,118.48,118.47,83.86690882]
[1741629998119,0.16263543,118.48,118.47,92.30780882]
[1741629998435,0.16872365,118.5,118.49,0.28432314]
[1741629998719,0.1647121,118.51,118.49,73.92954517]
[1741629998887,0.1647121,118.51,118.5,72.37998568]
[1741629999084,0.1647121,118.51,118.5,126.39464564]
[1741629999512,0.16829622,118.52,118.51,2.0]
[1741629999726,0.15765698,118.55,118.53,20.933972]
[1741629999892,0.15765698,118.55,118.53,129.65932735]
[1741630000093,0.15765698,118.55,118.53,72.66430882]
[1741630000911,0.15765698,118.55,118.53,83.60427339]
[1741630002232,0.15765698,118.55,118.53,92.04087339]
[1741630002528,0.15765698,118.55,118.53,94.04087339]
[1741630002903,223.5,118.62,118.56,2.0]
[1741630003118,223.5,118.62,118.61,72.66430882]
[1741630003303,223.5,118.62,118.61,29.87393657]
[1741630003503,223.5,118.62,118.6,64.67030139]
[1741630003710,227.7151,118.62,118.6,10.93996457]
[1741630004011,227.7151,118.62,118.57,72.37998568]
[1741630004218,12.88,118.61,118.57,83.31995025]
[1741630004406,66.61033682,118.61,118.56,64.67030139]
[1741630004832,12.88,118.61,118.58,53.73033682]
[1741630005046,12.88,118.61,118.58,109.93033682]
[1741630005214,12.88,118.61,118.58,56.2]
[1741630005414,66.61033682,118.61,118.56,72.37998568]
[1741630005942,17.0958,118.61,118.56,72.37998568]
[1741630006118,17.0958,118.61,118.57,53.73033682]
[1741630006315,70.82613682,118.61,118.56,18.64964886]
[1741630006535,53.73033682,118.59,118.55,56.2]
[1741630006758,53.73033682,118.59,118.54,56.2]
[1741630006945,53.73033682,118.59,118.54,109.93033682]
[1741630007442,53.73033682,118.6,118.55,53.73033682]
[1741630007648,17.0958,118.61,118.57,53.73033682]
[1741630007849,227.7151,118.62,118.59,53.73033682]
[1741630008143,227.7151,118.62,118.57,109.93033682]
[1741630008344,53.73033682,118.61,118.57,56.2]
[1741630008509,53.73033682,118.6,118.55,53.73033682]
[1741630008709,53.73033682,118.61,118.55,53.73033682]
[1741630008923,53.73033682,118.58,118.53,54.01465996]
[1741630009124,0.15763448,118.56,118.53,110.21465996]
[1741630009541,0.15763448,118.56,118.55,53.73033682]
[1741630009838,0.15763448,118.56,118.55,18.933972]
[1741630010045,0.15763448,118.56,118.55,72.66430882]
[1741630010411,0.15763448,118.56,118.53,57.60713091]
[1741630010616,0.15763448,118.56,118.55,53.73033682]
[1741630010825,4.37483448,118.56,118.53,53.73033682]
[1741630011033,0.15763448,118.56,118.54,53.73033682]
[1741630011314,0.15763448,118.56,118.55,53.73033682]
[1741630011820,0.15763448,118.56,118.55,53.23033682]
[1741630012326,0.15763448,118.56,118.55,53.73033682]
[1741630013520,0.15763448,118.56,118.55,72.66430882]
[1741630013945,0.15763448,118.56,118.55,128.86430882]
[1741630014143,0.15763448,118.56,118.55,137.29950882]
[1741630014449,0.15763448,118.56,118.55,191.02984564]
[1741630015014,3.448e-05,118.56,118.55,191.02984564]
[1741630015240,4.588e-05,118.57,118.56,18.933972]
[1741630015553,5.37e-06,118.59,118.58,20.933972]
[1741630015748,4.838e-05,118.6,118.59,20.933972]
[1741630016034,4.838e-05,118.6,118.59,81.09670882]
[1741630016219,4.838e-05,118.6,118.59,53.73033682]
[1741630016533,4.838e-05,118.6,118.59,109.93029094]
[1741630016747,4.838e-05,118.6,118.59,137.29666294]
[1741630017632,4.838e-05,118.6,118.59,81.09670882]
[1741630018015,0.15983117,118.62,118.6,18.933972]
[1741630018216,0.15983117,118.62,118.6,136.09025105]
[1741630018518,0.15983117,118.62,118.6,72.66430882]
[1741630018728,0.15983117,118.62,118.6,81.09600882]
[1741630019233,0.15983117,118.62,118.6,136.09058534]
[1741630019435,0.15983117,118.62,118.6,138.09058534]
[1741630019617,0.15983117,118.62,118.61,126.39464564]
[1741630020013,0.15983117,118.62,118.61,72.66430882]
[1741630020224,0.15983117,118.62,118.61,81.09520882]
[1741630020435,0.15983117,118.62,118.61,62.95629989]
[1741630020826,0.15983117,118.62,118.61,98.54772778]
[1741630021031,0.15983117,118.62,118.61,62.95629989]
[1741630021417,0.23750588,118.63,118.61,99.81167463]
[1741630021623,0.15821687,118.65,118.64,20.28432314]
[1741630021919,0.063,118.68,118.66,0.28432314]
[1741630022115,0.063,118.68,118.67,62.95209989]
[1741630022349,0.063,118.68,118.67,120.05736949]
[1741630022527,0.063,118.68,118.67,155.64879738]
[1741630022853,0.063,118.68,118.67,154.38531091]
[1741630023158,0.063,118.68,118.67,110.36718302]
[1741630023324,0.063,118.68,118.67,91.43321102]
[1741630023524,0.063,118.68,118.66,55.84178313]
[1741630023728,0.063,118.68,118.66,35.59142789]
[1741630024053,0.063,118.68,118.67,35.59142789]
[1741630024268,0.063,118.68,118.64,56.0]
[1741630024848,0.063,118.68,118.65,53.36587593]
[1741630025063,0.063,118.68,118.66,18.933972]
[1741630025239,0.063,118.68,118.66,76.19761622]
[1741630026041,0.063,118.68,118.67,125.66572386]
[1741630026238,0.063,118.71,118.7,47.358472]
[1741630026565,0.063,118.71,118.7,183.88719369]
[1741630026753,0.063,118.71,118.7,182.62434793]
[1741630026953,0.063,118.71,118.7,154.19984793]
[1741630027142,0.063,118.71,118.7,109.36587593]
[1741630027335,0.063,118.71,118.67,53.36587593]
[1741630027645,20.0,118.7,118.65,0.03]
[1741630027835,53.36587593,118.68,118.65,0.03]
[1741630028028,289.48587593,118.67,118.65,0.03]
[1741630028258,57.57957593,118.66,118.65,0.03]
[1741630028849,20.0,118.63,118.57,56.0]
[1741630029047,53.36587593,118.61,118.54,56.03]
[1741630029275,66.22587593,118.6,118.54,56.03]
[1741630029463,12.86,118.59,118.55,53.5080375]
[1741630029644,66.22587593,118.59,118.54,53.39587593]
[1741630029849,53.36587593,118.57,118.54,0.03]
[1741630030158,57.58347593,118.55,118.54,0.03]
[1741630030360,4.2176,118.55,118.54,0.03]
[1741630030751,236.12,118.58,118.54,18.67964886]
[1741630030959,223.26,118.58,118.57,53.36587593]
[1741630031154,227.4765,118.58,118.55,53.36587593]
[1741630031457,280.84237593,118.58,118.54,56.03]
[1741630031762,53.36587593,118.56,118.54,0.03]
[1741630031960,53.36587593,118.57,118.54,0.03]
[1741630032346,73.36587593,118.55,118.53,0.03]
[1741630032654,104.85552479,118.54,118.45,114.42887593]
[1741630032970,86.20587593,118.54,118.48,53.36587593]
[1741630033142,86.20587593,118.54,118.46,0.14216157]
[1741630033143,32.84,118.54,118.46,0.14216157]
[1741630033348,53.36587593,118.51,118.45,61.063]
[1741630033539,53.36587593,118.51,118.46,53.36587593]
[1741630033771,32.84,118.54,118.5,53.36587593]
[1741630033937,32.84,118.53,118.46,74.933972]
[1741630034142,12.7533547,118.51,118.47,8.4408]